bitfinex-derivatives/quotes_ETHF0:USTF0_20251012
["timestamp","ask_amount","ask_price","bid_price","bid_amount"]
[1760231742216,0.48148,3735.1,3734.5,0.62595]
[1760231742607,0.48149,3735.0,3734.5,0.62875205]
[1760231742809,0.3331,3735.6,3734.6,0.3324]
[1760231743006,11.03905063,3737.4,3735.6,0.3324]
[1760231743205,11.03905063,3737.4,3735.1,0.3324]
[1760231743206,0.48139,3735.8,3735.1,0.3324]
[1760231743412,0.3331,3735.9,3735.1,0.3324]
[1760231743610,0.48133,3736.2,3735.6,0.4814]
[1760231743810,0.3331,3735.8,3735.0,0.1361]
[1760231744016,0.3331,3736.4,3735.1,0.3324]
[1760231744317,0.48134,3736.2,3735.8,0.3324]
[1760231744711,0.48136,3736.0,3735.9,0.3324]
[1760231745009,0.48136,3736.0,3735.6,0.3324]
[1760231745211,0.3331,3736.4,3735.6,0.3324]
[1760231745412,0.3331,3736.9,3735.6,0.3324]
[1760231745715,0.3331,3736.9,3735.8,0.3324]
[1760231746015,0.48143,3735.5,3735.1,0.3324]
[1760231746217,0.3331,3736.0,3735.0,0.4685]
[1760231746410,0.3331,3736.0,3733.5,1.34029]
[1760231746411,0.48153,3734.7,3734.6,0.3324]
[1760231746609,0.00279663,3734.7,3734.6,0.3324]
[1760231746810,0.48153,3734.6,3734.5,0.00280205]
[1760231747007,0.00279663,3734.7,3734.6,0.3324]
[1760231747606,0.3331,3736.2,3734.7,0.3324]
[1760231747912,0.48137,3735.9,3735.5,0.61751]
[1760231748214,0.48134,3736.2,3736.0,0.3324]
[1760231748415,9.834,3737.4,3736.1,0.3324]
[1760231748416,1.20304,3737.1,3736.1,0.3324]
[1760231748613,1.20307,3737.0,3736.1,0.3324]
[1760231748806,0.00260823,3737.1,3736.1,0.3324]
[1760231749013,0.4813,3736.5,3736.1,0.3324]
[1760231749216,0.4813,3736.5,3736.1,0.48133]
[1760231749614,0.48133,3736.2,3735.6,0.3324]
[1760231749915,0.48135,3736.1,3736.0,0.3324]
[1760231750522,0.48135,3736.1,3736.0,0.4685]
[1760231750823,0.33570823,3737.1,3736.1,0.3324]
[1760231751014,0.00260823,3737.1,3736.1,0.3324]
[1760231751522,0.00260823,3737.1,3737.0,0.4685]
[1760231752024,0.00260823,3737.1,3737.0,0.3324]
[1760231752722,0.48127,3736.7,3736.6,0.3324]
[1760231752919,0.00260823,3737.1,3736.6,0.3324]
[1760231753121,0.48126,3736.8,3736.1,0.48133]
[1760231753320,0.48126,3736.8,3736.2,0.3324]
[1760231753624,0.00260823,3737.1,3736.6,0.48126]
[1760231754121,0.00260823,3737.1,3736.6,0.3324]
[1760231754324,0.00260823,3737.1,3736.5,0.61738]
[1760231754325,0.48126,3736.8,3736.5,0.1361]
[1760231754524,0.48126,3736.8,3735.9,0.3324]
[1760231754525,0.48134,3736.2,3735.9,0.3324]
[1760231754825,0.48126,3736.8,3736.1,0.3324]
[1760231755126,0.00260823,3737.1,3736.5,0.1361]
[1760231755318,0.48127,3736.7,3736.1,0.3324]
[1760231755518,0.48131,3736.4,3736.1,0.3324]
[1760231755717,0.48132,3736.3,3736.1,0.3324]
[1760231755919,0.81437,3736.7,3736.1,0.48133]
[1760231756219,0.48124,3736.9,3736.4,0.3324]
[1760231756419,0.48124,3736.9,3736.7,0.3324]
[1760231756621,0.48124,3736.9,3736.4,0.48129]
[1760231756819,0.48382823,3737.1,3736.5,0.48128]
[1760231757022,0.48123,3737.0,3736.6,0.3324]
[1760231757216,0.00260823,3737.1,3736.6,0.3324]
[1760231757217,0.00260823,3737.1,3736.8,0.48124]
[1760231757716,0.00260823,3737.1,3736.8,0.3324]
[1760231757921,0.00260823,3737.1,3736.5,0.1361]
[1760231757922,0.00260823,3737.1,3736.5,0.4685]
[1760231758119,0.00260823,3737.1,3736.6,0.3324]
[1760231758627,0.99248837,3737.0,3736.1,0.48134]
[1760231758921,0.65938837,3736.9,3736.0,0.4685]
[1760231759121,0.65938837,3736.9,3736.0,0.3324]
[1760231759331,0.48136,3736.0,3735.5,0.61752]
[1760231759519,0.48136,3736.0,3735.6,0.3324]
[1760231759917,0.95189412,3736.9,3735.6,5.3324]
[1760231760121,0.65987823,3736.8,3736.2,0.3324]
[1760231760524,0.48124,3736.9,3736.5,0.48128]
[1760231760822,0.99390445,3736.8,3736.1,0.3324]
[1760231761020,0.48123,3737.0,3736.7,0.3324]
[1760231761222,0.66079017,3736.9,3736.8,0.3324]
[1760231761726,5.66079017,3736.9,3736.0,0.1361]
[1760231762024,0.3331,3737.0,3735.0,3.24978156]
[1760231762025,0.3331,3736.7,3735.0,0.1361]
[1760231762222,0.66079017,3736.8,3735.7,0.48138]
[1760231762223,0.48133,3736.2,3735.7,0.48138]
[1760231762427,0.48135,3736.1,3736.0,0.1361]
[1760231762725,0.48135,3736.1,3735.0,1.3398]
[1760231762726,0.66084696,3736.1,3735.0,0.1361]
[1760231762928,0.48146,3735.2,3735.1,0.3324]
[1760231763921,0.4815,3735.0,3734.7,0.48152]
[1760231764124,0.3331,3735.5,3734.5,0.13890205]
[1760231764324,0.48153,3734.6,3734.5,0.00280205]
[1760231764529,0.48145,3735.3,3734.6,0.48153]
[1760231764724,0.6609335,3735.2,3734.6,0.3332]
[1760231764922,0.6609335,3735.1,3734.5,0.13890205]
[1760231765226,0.4815,3734.9,3734.6,0.3332]
[1760231765420,0.3458,3735.3,3734.6,0.3332]
[1760231765621,0.3458,3735.3,3734.5,0.14660205]
[1760231765622,0.66056834,3735.2,3734.7,0.48152]
[1760231765821,0.48142,3735.6,3735.1,0.48147]
[1760231766029,0.95189412,3736.2,3735.2,0.3332]
[1760231766232,0.66050757,3736.1,3735.5,0.1438]
[1760231766421,0.3458,3735.9,3735.0,0.477]
[1760231766621,1.86390757,3736.0,3734.5,0.14660205]
[1760231766622,0.3458,3735.3,3734.5,0.14660205]
[1760231766818,0.48151,3734.8,3734.5,0.00280205]
[1760231767127,0.48153,3734.7,3734.5,0.00280205]
[1760231767428,0.82733,3734.7,3734.5,0.00280205]
[1760231767626,0.3458,3734.6,3734.5,0.00280205]
[1760231768126,0.48153,3734.7,3734.5,0.00280205]
[1760231768333,0.3458,3734.6,3734.5,0.00280205]
[1760231768628,0.48153,3734.7,3734.5,0.14660205]
[1760231768819,0.48153,3734.7,3734.6,0.3332]
[1760231769124,1.29769412,3736.9,3735.6,0.3332]
[1760231769327,0.3458,3736.7,3735.6,0.3332]
[1760231769525,0.48132,3736.4,3735.7,0.48138]
[1760231769830,0.66029669,3736.3,3735.5,0.95841]
[1760231770024,0.66029669,3736.2,3735.5,0.95841]
[1760231770225,0.66029669,3736.1,3735.5,0.95841]
[1760231770425,1.29769412,3736.7,3735.5,0.477]
[1760231770721,1.29769412,3736.7,3735.2,0.48145]
[1760231770722,0.48139,3735.8,3735.2,0.48145]
[1760231771126,0.3458,3736.0,3735.3,0.3332]
[1760231771127,0.4814,3735.7,3735.3,0.3332]
[1760231771323,0.4814,3735.7,3735.4,0.3332]
[1760231771628,0.3458,3735.9,3734.6,0.3332]
[1760231771831,0.3458,3735.7,3734.6,0.81473]
[1760231772124,0.660299,3735.8,3734.6,0.81473]
[1760231772125,0.48152,3734.8,3734.6,0.3332]
[1760231772429,0.48149,3735.0,3734.5,0.00280205]
[1760231772728,0.48149,3735.0,3734.5,0.14660205]
[1760231772932,0.48146,3735.2,3734.6,0.3332]
[1760231773328,0.3458,3735.8,3734.6,0.3332]
[1760231773631,0.66014882,3735.7,3734.6,0.3332]
[1760231773832,0.3458,3735.4,3734.6,0.3332]
[1760231774029,0.3458,3734.6,3734.5,0.00280205]
[1760231774727,0.3458,3734.6,3733.0,0.1438]
[1760231774728,0.1433,3734.5,3733.0,0.1438]
[1760231775030,0.3458,3734.9,3733.7,0.3332]
[1760231775333,0.48155,3734.6,3734.0,0.62541]
[1760231775533,0.48155,3734.6,3733.5,0.1438]
[1760231775534,0.48158,3734.3,3734.1,0.3332]
[1760231775728,0.48158,3734.3,3734.1,0.00253514]
[1760231775729,0.00328921,3734.3,3734.1,0.00253514]
[1760231776033,0.00328921,3734.3,3734.2,0.81479]
[1760231776830,0.00328921,3734.3,3734.2,0.3332]
[1760231777025,0.00328921,3734.3,3734.1,0.00253514]
[1760231777026,0.82739,3734.2,3734.1,0.00253514]
[1760231777224,0.3458,3733.9,3732.6,0.3332]
[1760231777424,6.6115374,3734.2,3732.6,0.3332]
[1760231777425,0.4816,3734.2,3733.5,0.477]
[1760231777632,0.48162,3734.0,3733.5,0.1438]
[1760231777933,0.00328921,3734.3,3733.5,0.1438]
[1760231777934,0.48165,3733.8,3733.6,0.3332]
[1760231778133,0.48165,3733.8,3733.6,0.335321]
[1760231778335,0.3458,3733.7,3733.6,0.002121]
[1760231778734,0.34908921,3734.3,3733.6,0.335321]
[1760231778933,0.4816,3734.1,3733.7,0.3332]
[1760231779126,0.00328921,3734.3,3734.1,0.48159]
[1760231779329,0.00328921,3734.3,3734.2,0.3332]
[1760231779524,0.48154,3734.6,3734.2,0.3332]
[1760231779525,0.3458,3735.9,3734.6,0.48153]
[1760231779730,0.3458,3735.9,3734.9,0.3332]
[1760231780032,0.3458,3735.4,3734.5,0.62534]
[1760231780232,0.1433,3736.5,3734.6,0.3332]
[1760231780233,0.3458,3736.1,3734.6,0.3332]
[1760231780431,0.4814,3735.7,3735.1,0.3332]
[1760231780634,0.00204011,3735.7,3735.6,0.3332]
[1760231780840,0.00204011,3735.7,3735.6,5.0]
[1760231781029,0.00204011,3735.7,3735.6,5.3332]
[1760231781737,0.3458,3737.1,3736.3,0.81451]
[1760231781738,0.48124,3736.9,3736.3,0.81451]
[1760231781939,0.48124,3736.9,3736.4,0.3332]
[1760231782140,0.48121,3737.1,3736.6,0.3332]
[1760231782434,0.48117,3737.5,3736.7,0.48125]
[1760231782636,0.48382418,3737.5,3737.1,0.3332]
[1760231783035,0.48382418,3737.5,3737.0,0.1438]
[1760231783234,0.00265418,3737.5,3737.0,0.62501]
[1760231783433,0.00265418,3737.5,3737.2,0.4812]
[1760231783637,0.00265418,3737.5,3737.4,0.81437]
[1760231783833,0.00265418,3737.5,3737.4,5.81437]
[1760231784537,9.834,3738.4,3737.4,5.81437]
[1760231784538,9.834,3738.4,3737.8,0.48112]
[1760231784739,9.834,3738.4,3738.0,0.1438]
[1760231784934,0.48108,3738.2,3738.1,0.3332]
[1760231785439,0.48108,3738.2,3737.5,0.1438]
[1760231785440,0.48113,3737.8,3737.1,0.3332]
[1760231785637,0.48115,3737.7,3737.1,0.3332]
[1760231785841,0.00209284,3737.8,3737.1,0.3332]
[1760231786033,0.00209284,3737.8,3737.6,0.3332]
[1760231786229,0.48115,3737.7,3737.6,0.3332]
[1760231787633,0.48115,3737.7,3737.0,0.1438]
[1760231787634,0.48121,3737.1,3737.0,0.477]
[1760231787834,0.00209284,3737.8,3737.1,0.3332]
[1760231788038,0.00209284,3737.8,3737.6,0.3332]
[1760231788239,0.00209284,3737.8,3737.7,0.3332]
[1760231788836,0.4812,3737.3,3737.1,0.3332]
[1760231789231,0.3458,3737.7,3736.5,0.1438]
[1760231789436,0.48125,3736.9,3736.8,0.3332]
[1760231789847,0.00209284,3737.8,3736.8,0.3332]
[1760231790141,0.3458,3736.8,3736.2,0.3332]
[1760231790337,0.00209284,3737.8,3736.8,0.3332]
[1760231790338,3.41087566,3737.7,3736.8,0.3332]
[1760231790534,0.48119,3737.4,3737.0,0.1438]
[1760231790737,0.48115,3737.6,3737.1,0.81441]
[1760231790934,0.48115,3737.6,3737.2,0.3332]
[1760231791133,0.00209284,3737.8,3737.0,0.1438]
[1760231791134,0.00209284,3737.8,3737.4,0.3332]
[1760231791336,0.00209284,3737.8,3737.0,0.1438]
[1760231791337,0.00209284,3737.8,3737.6,0.48114]
[1760231791533,0.00209284,3737.8,3737.7,0.3332]
[1760231791944,0.4891,3739.5,3737.7,5.0]
[1760231792138,0.4891,3739.5,3737.5,0.1438]
[1760231792139,0.3458,3739.5,3738.3,0.3332]
[1760231792541,0.3458,3739.5,3738.6,0.3332]
[1760231793044,0.34804158,3739.5,3738.6,0.3332]
[1760231793243,0.48098,3739.0,3738.6,0.3332]
[1760231793446,0.3458,3739.4,3738.2,0.3332]
[1760231793845,0.3458,3739.4,3738.0,0.1438]
[1760231793846,0.3458,3739.4,3738.4,0.3332]
[1760231794040,0.48098,3739.0,3738.5,0.1438]
[1760231794344,0.00224158,3739.5,3738.8,0.3332]
[1760231794345,0.48095,3739.2,3738.8,0.3332]
[1760231794553,0.48095,3739.2,3738.7,0.481]
[1760231795046,0.00224158,3739.5,3738.6,0.3351]
[1760231795444,0.48102,3738.6,3738.5,0.4789]
[1760231795744,0.48102,3738.6,3738.5,0.3351]
[1760231795942,0.48105,3738.4,3738.0,0.1438]
[1760231796140,0.48105,3738.4,3738.1,0.3351]
[1760231796442,0.48107,3738.2,3738.1,0.3351]
[1760231796637,0.48105,3738.4,3738.1,0.3351]
[1760231796850,0.3588,3739.1,3738.1,0.3351]
[1760231797144,0.48105,3738.4,3738.1,0.3351]
[1760231797348,0.48105,3738.4,3738.0,0.62489]
[1760231797541,0.48107,3738.3,3738.0,0.1438]
[1760231797741,0.48108,3738.2,3738.0,0.4789]
[1760231797941,0.48108,3738.2,3738.1,0.3351]
[1760231798148,0.4811,3738.0,3737.5,0.1438]
[1760231798343,0.14674158,3739.5,3737.6,0.3351]
[1760231798344,0.3588,3739.4,3737.6,0.3351]
[1760231798542,0.3588,3739.4,3738.2,0.48107]
[1760231798840,0.3588,3739.4,3738.5,0.479]
[1760231799038,0.48098,3739.0,3738.6,0.3351]
[1760231799246,0.48098,3739.0,3738.6,0.48101]
[1760231799438,0.48098,3739.0,3738.8,0.3351]
[1760231799650,0.48097,3739.0,3738.5,0.1439]
[1760231799845,0.00224158,3739.5,3738.7,0.3351]
[1760231800149,0.48099,3738.9,3738.6,0.3351]
[1760231800347,0.48093,3739.3,3738.7,0.48101]
[1760231800548,0.48095,3739.2,3739.1,0.3351]
[1760231801450,0.00224158,3739.5,3739.1,0.3351]
[1760231801743,0.48094,3739.2,3739.1,0.3429]
[1760231802149,0.00224158,3739.5,3739.0,0.143]
[1760231802343,0.00224158,3739.5,3739.1,0.3429]
[1760231802547,0.3405,3741.4,3739.6,0.3429]
[1760231802746,0.48085,3740.0,3739.6,0.3429]
[1760231802951,0.3405,3741.1,3739.6,0.3429]
[1760231803250,0.1441,3742.5,3739.5,0.143]
[1760231803251,0.3405,3741.7,3740.3,0.3429]
[1760231803550,0.48072,3741.0,3740.3,0.48424438]
[1760231803751,0.48072,3741.0,3740.5,0.143]
[1760231803947,0.48075,3740.7,3740.6,0.3429]
[1760231804149,0.48073,3740.9,3740.4,0.3429]
[1760231804356,0.3405,3741.4,3740.4,0.3429]
[1760231804546,0.48071,3741.0,3740.4,0.3429]
[1760231804742,0.48073,3740.9,3740.6,0.3429]
[1760231804953,0.48071,3741.0,3740.5,0.143]
[1760231805142,1.20365006,3741.7,3740.5,0.143]
[1760231805346,0.48069,3741.2,3740.6,0.3429]
[1760231805545,0.48071,3741.1,3741.0,0.4859]
[1760231805753,0.48071,3741.1,3741.0,0.3429]
[1760231805948,0.48071,3741.1,3740.3,0.00344438]
[1760231805949,6.54227,3741.1,3740.3,0.00344438]
[1760231806155,0.48083,3740.1,3740.0,0.3429]
[1760231806448,0.48089,3739.7,3739.6,0.3429]
[1760231806654,0.48086,3739.9,3739.6,0.3429]
[1760231806852,0.48084,3740.1,3739.6,0.3429]
[1760231807150,0.3405,3740.9,3739.6,0.34588775]
[1760231807151,1.20189,3740.7,3739.6,0.34588775]
[1760231807353,0.3405,3740.6,3739.6,0.34588775]
[1760231807656,0.48082,3740.2,3740.0,0.143]
[1760231807852,0.48082,3740.2,3740.1,0.3429]
[1760231808048,1.20198,3740.4,3739.6,0.00298775]
[1760231808344,0.48088,3739.8,3739.7,0.3429]
[1760231808550,0.3405,3739.7,3739.6,0.00298775]
[1760231809153,5.3405,3739.7,3739.6,0.00298775]
[1760231809747,0.48108,3738.1,3738.0,0.3429]
[1760231809951,0.3405,3738.7,3738.0,0.3429]
[1760231810247,0.1441,3739.5,3738.0,0.143]
[1760231810454,0.3405,3739.0,3738.0,0.143]
[1760231810656,0.48106,3738.4,3738.0,0.14511007]
[1760231810953,0.48106,3738.4,3738.1,0.3429]
[1760231811152,0.48107,3738.2,3738.0,0.00211007]
[1760231811453,0.00238632,3739.0,3738.2,0.48107]
[1760231811650,0.00238632,3739.0,3738.3,0.82395]
[1760231811857,0.00238632,3739.0,3738.5,0.143]
[1760231812151,0.00238632,3739.0,3738.6,0.3429]
[1760231812650,0.00238632,3739.0,3738.9,0.82388]
[1760231812854,0.00238632,3739.0,3738.9,0.3429]
[1760231813250,0.48335632,3739.0,3738.9,0.3429]
[1760231813752,0.48335632,3739.0,3738.3,0.48105]
[1760231813753,0.48098,3738.9,3738.1,0.3429]
[1760231813946,0.00238632,3739.0,3738.1,0.3429]
[1760231814149,0.48098,3738.9,3738.1,0.3429]
[1760231814554,0.00238632,3739.0,3738.1,0.3429]
[1760231814850,0.48099,3738.9,3738.3,0.3429]
[1760231815051,0.00238632,3739.0,3738.6,0.3429]
[1760231815354,0.00238632,3739.0,3738.6,0.82392]
[1760231815656,0.481,3738.8,3738.6,0.3429]
[1760231815955,0.00238632,3739.0,3738.0,0.14511007]
[1760231815956,0.48106,3738.4,3738.0,0.14511007]
[1760231816158,0.48107,3738.3,3738.0,0.14511007]
[1760231816649,0.48108,3738.2,3738.0,0.00211007]
[1760231816854,0.48108,3738.2,3737.0,0.143]
[1760231816855,0.48118,3737.4,3737.0,0.143]
[1760231817049,0.3405,3738.5,3737.2,0.3429]
[1760231817250,0.48117,3737.5,3737.3,0.3429]
[1760231817449,0.4812,3737.3,3737.0,0.4859]
[1760231817753,0.48121,3737.2,3737.1,0.3429]
[1760231818054,0.82171,3737.2,3737.1,0.00290703]
[1760231818253,5.82171,3737.2,3737.1,0.00290703]
[1760231818851,1.20307,3737.1,3736.0,0.4859]
[1760231819251,0.48124,3736.9,3736.6,0.3429]
[1760231819556,0.3405,3737.9,3736.6,0.3429]
[1760231819750,0.48126,3736.7,3736.6,0.34551087]
[1760231819952,0.82176,3736.7,3736.6,0.00261087]
[1760231820458,0.48126,3736.7,3736.6,0.34551087]
[1760231821252,0.48125,3736.8,3736.6,0.00261087]
[1760231821452,0.3405,3737.3,3736.7,0.3429]
[1760231821648,0.3405,3737.9,3736.7,0.3429]
[1760231821955,0.3405,3737.9,3736.6,0.34551087]
[1760231822156,0.48122,3737.1,3736.6,0.34551087]
[1760231822348,1.20273,3738.1,3736.7,0.82415]
[1760231822549,1.20273,3738.1,3736.8,0.3429]
[1760231822750,1.20273,3738.1,3736.6,0.00261087]
[1760231822751,0.48126,3736.7,3736.6,0.34551087]
[1760231823056,0.82176,3736.7,3736.6,0.00261087]
[1760231823859,0.4814,3735.7,3735.1,0.3429]
[1760231824055,5.0,3736.7,3735.0,0.143]
[1760231824056,1.20317,3736.7,3735.6,0.3429]
[1760231824255,0.4814,3735.7,3735.6,0.3429]
[1760231824855,0.48420116,3735.7,3735.6,0.34573719]
[1760231825453,0.48146,3735.2,3735.1,0.3379]
[1760231825653,0.00280116,3735.7,3735.0,0.1413]
[1760231825852,0.00280116,3735.7,3735.1,0.3379]
[1760231826053,0.48147,3735.2,3735.1,0.3379]
[1760231829261,0.48141,3735.6,3735.1,0.3379]
[1760231829470,0.00280116,3735.7,3735.6,0.3379]
[1760231829669,0.00280116,3735.7,3735.6,5.3379]
[1760231829959,0.3505,3737.4,3736.1,0.48133]
[1760231830162,0.48127,3736.7,3736.1,0.48133]
[1760231830366,0.48125,3736.9,3736.0,0.1413]
[1760231830561,1.33991,3738.5,3736.9,0.48124]
[1760231830760,0.48117,3737.5,3737.1,0.3379]
[1760231830957,0.48314693,3737.5,3737.2,0.3379]
[1760231831162,0.48119,3737.3,3737.2,0.3379]
[1760231831462,0.00197693,3737.5,3737.4,0.3379]
[1760231831860,0.48313693,3737.5,3737.4,0.3379]
[1760231832053,0.48313693,3737.5,3737.1,0.00200085]
[1760231832054,0.8317,3737.2,3737.1,0.00200085]
[1760231832664,0.00197693,3737.5,3737.1,0.00200085]
[1760231832665,0.4812,3737.3,3737.2,0.3379]
[1760231832966,0.4812,3737.3,3737.1,0.00200085]
[1760231832967,0.3505,3737.2,3737.1,0.00200085]
[1760231833263,0.4812,3737.3,3737.2,0.3379]
[1760231833667,0.3505,3737.2,3737.1,0.00200085]
[1760231834255,0.48119,3737.3,3737.2,0.3379]
[1760231834762,0.48119,3737.3,3737.1,0.00200085]
[1760231834763,0.3505,3737.2,3737.1,0.00200085]
[1760231835463,0.00197693,3737.5,3737.2,0.3379]
[1760231835660,0.83168,3737.4,3737.1,0.00200085]
[1760231835858,0.3505,3737.3,3737.1,0.00200085]
[1760231836063,0.3505,3737.2,3737.1,0.00200085]
[1760231836263,5.3505,3737.2,3737.1,0.00200085]
[1760231836664,0.48139,3735.7,3735.6,0.3379]
[1760231837269,0.48144,3735.4,3735.0,0.1413]
[1760231837569,0.48144,3735.4,3735.0,0.14210031]
[1760231837764,0.48128,3736.6,3736.0,0.1413]
[1760231837961,0.4813,3736.5,3736.0,0.1413]
[1760231838161,0.00197693,3737.5,3736.3,0.3379]
[1760231838463,0.00197693,3737.5,3736.0,0.1413]
[1760231838464,0.00197693,3737.5,3736.6,0.3379]
[1760231838664,0.48122,3737.1,3736.6,0.3379]
[1760231838869,0.48122,3737.1,3737.0,0.4792]
[1760231839565,0.48314693,3737.5,3737.1,0.3379]
[1760231839868,0.48314693,3737.5,3736.0,0.1413]
[1760231839869,0.48134,3736.2,3736.1,0.3379]
[1760231840164,0.05657693,3737.5,3735.5,0.1413]
[1760231840165,1.20301,3737.2,3735.5,0.1413]
[1760231840365,0.05657693,3737.5,3736.5,0.1413]
[1760231840366,0.00197693,3737.5,3736.5,0.1413]
[1760231840568,0.48119,3737.3,3736.5,0.1413]
[1760231840769,0.48119,3737.3,3737.0,0.1413]
[1760231840963,0.00197693,3737.5,3737.1,0.3379]
[1760231841469,0.48314693,3737.5,3737.0,0.62252]
[1760231841669,0.48314693,3737.5,3737.1,0.3379]
[1760231842169,0.4812,3737.2,3737.1,0.3379]
[1760231842366,0.4812,3737.2,3736.5,0.1413]
[1760231842367,0.48127,3736.7,3736.5,0.1413]
[1760231842675,0.48127,3736.7,3736.1,0.3379]
[1760231842860,0.4813,3736.5,3736.0,0.62265]
[1760231843169,0.48127,3736.7,3736.0,0.1413]
[1760231843473,0.3293,3736.8,3735.5,0.1413]
[1760231843773,0.48139,3735.8,3735.5,0.1413]
[1760231843969,1.20311,3736.9,3735.9,0.3379]
[1760231844272,0.48137,3735.9,3735.5,0.1413]
[1760231844476,0.48137,3735.9,3735.6,0.3379]
[1760231844667,0.48139,3735.7,3735.6,0.3379]
[1760231844871,0.3293,3736.6,3735.6,0.3379]
[1760231845074,0.48137,3735.9,3735.6,0.3379]
[1760231845373,0.48137,3735.9,3735.5,0.1413]
[1760231845769,0.3293,3736.6,3735.7,0.3379]
[1760231845969,0.48135,3736.1,3735.7,0.3379]
[1760231846273,0.48144,3735.3,3735.2,0.3379]
[1760231846472,1.53268,3736.1,3735.0,0.14210031]
[1760231846676,0.48146,3735.2,3735.0,0.00080031]
[1760231847167,0.48146,3735.2,3735.1,0.3379]
[1760231847368,0.48146,3735.2,3735.0,0.00080031]
[1760231847369,0.3293,3735.1,3735.0,0.00080031]
[1760231847562,0.48146,3735.2,3735.0,0.00080031]
[1760231848367,5.3293,3735.1,3735.0,0.00080031]
[1760231848568,0.3293,3735.1,3735.0,0.00080031]
[1760231849466,0.48146,3735.2,3735.1,0.3379]
[1760231849668,0.81076,3735.2,3735.0,0.00080031]
[1760231850074,0.4816,3734.2,3733.7,0.48164]
[1760231850274,1.20375,3734.9,3733.6,0.3379]
[1760231850476,0.48163,3733.9,3733.6,0.3379]
[1760231850670,0.48162,3734.0,3733.6,0.3379]
[1760231850867,0.48166,3733.7,3733.5,0.3379]
[1760231851175,0.00222251,3733.7,3733.6,0.3379]
[1760231851568,0.48169,3733.4,3733.0,0.1413]
[1760231851968,0.48169,3733.4,3733.1,0.3379]
[1760231852166,0.48169,3733.4,3733.0,0.1413]
[1760231852365,0.00222251,3733.7,3733.0,0.4792]
[1760231852766,0.00222251,3733.7,3733.1,0.3379]
[1760231852767,0.48172,3733.2,3733.1,0.3379]
[1760231853368,0.48175,3733.0,3732.6,0.3379]
[1760231853672,0.33152251,3733.7,3732.5,0.14310965]
[1760231853673,0.48179,3732.7,3732.5,0.14310965]
[1760231853874,0.48179,3732.7,3732.6,0.3379]
[1760231854174,0.48176,3732.9,3732.5,0.14310965]
[1760231854375,0.48177,3732.8,3732.5,0.14310965]
[1760231854876,0.3298,3732.6,3732.5,0.00180965]
[1760231855175,0.48186,3732.1,3732.0,0.3498]
[1760231855473,0.3298,3732.6,3731.1,0.3498]
[1760231855677,0.48184,3732.3,3731.1,0.3498]
[1760231855867,0.48193,3731.6,3731.0,0.62329]
[1760231856071,0.48195,3731.4,3731.1,0.3498]
[1760231856568,0.48195,3731.4,3731.0,0.1413]
[1760231857078,0.48198,3731.2,3730.6,0.48205]
[1760231857270,0.3298,3732.0,3730.8,0.48202]
[1760231857475,0.48196,3731.3,3731.0,0.134]
[1760231857780,0.48198,3731.2,3731.0,0.3498]
[1760231857975,0.48203,3730.8,3730.6,0.3498]
[1760231858176,0.00307941,3730.8,3730.6,0.3498]
[1760231858482,0.48204,3730.7,3730.6,0.3498]
[1760231858671,0.48207,3730.5,3730.0,0.134]
[1760231858875,0.48208,3730.4,3730.1,0.3498]
[1760231859075,0.48205,3730.7,3730.1,0.48211]
[1760231859376,0.00307941,3730.8,3730.5,0.134]
[1760231859377,0.48511941,3730.8,3730.5,0.134]
[1760231859583,0.48511941,3730.8,3730.6,0.3498]
[1760231859776,0.00307941,3730.8,3730.6,0.3498]
[1760231859979,0.00307941,3730.8,3730.7,0.3498]
[1760231860281,0.00307941,3730.8,3730.0,0.134]
[1760231860282,0.00307941,3730.8,3730.2,0.3498]
[1760231860475,0.48206,3730.6,3730.2,0.3498]
[1760231860673,0.48206,3730.6,3730.1,0.4821]
[1760231860981,0.00307941,3730.8,3730.2,0.3415]
[1760231861183,0.48207,3730.5,3730.0,0.134]
[1760231861578,0.48207,3730.5,3730.0,0.61612]
[1760231861785,0.00307941,3730.8,3730.2,0.3415]
[1760231861983,0.00307941,3730.8,3730.0,0.134]
[1760231861984,0.33317941,3730.8,3730.0,0.4755]
[1760231862288,0.4821,3730.3,3730.0,0.134]
[1760231862477,0.4821,3730.3,3730.1,0.3415]
[1760231862780,0.48207,3730.5,3730.0,0.134]
[1760231862985,0.00307941,3730.8,3730.2,0.4821]
[1760231863382,0.00307941,3730.8,3730.5,0.48206]
[1760231863578,0.00307941,3730.8,3730.7,0.3415]
[1760231865284,0.00307941,3730.8,3730.7,5.3415]
[1760231865485,0.48188,3732.0,3730.8,0.3415]
[1760231865679,0.0577,3732.5,3730.8,0.3415]
[1760231865977,0.48195,3731.4,3730.8,0.3415]
[1760231866185,0.48195,3731.4,3730.8,0.82352]
[1760231866377,0.482,3731.1,3730.9,0.3415]
[1760231866580,0.48196,3731.3,3730.8,0.82352]
[1760231866884,0.48196,3731.3,3731.0,0.3415]
[1760231867085,0.00333802,3731.4,3731.0,0.3415]
[1760231867281,0.48198,3731.2,3730.9,0.3415]
[1760231867584,0.48198,3731.2,3730.8,0.3415]
[1760231867785,0.48202,3730.9,3730.7,0.00188843]
[1760231868278,0.3331,3730.8,3730.7,0.00188843]
[1760231869881,0.3331,3730.6,3729.7,0.3415]
[1760231870086,0.48215,3729.9,3729.7,0.3415]
[1760231870483,0.48217,3729.7,3728.5,0.1431]
[1760231870682,0.48217,3729.7,3729.1,0.3415]
[1760231870877,0.3331,3730.0,3729.1,0.3415]
[1760231870878,0.48223,3729.3,3729.1,0.34269097]
[1760231871083,0.48223,3729.3,3729.1,0.00119097]
[1760231871285,0.3331,3729.2,3729.1,0.00119097]
[1760231871683,5.3331,3729.2,3729.1,0.00119097]
[1760231873589,0.3331,3729.2,3729.1,0.00119097]